[Event "*** Biggest EVER Titled Tuesday"]
[Site "Chess.com"]
[Date "2018.04.17"]
[Round "9"]
[White "Shtembuliak"]
[Black "severomorskij"]
[Result "1-0"]
[WhiteElo "2668"]
[BlackElo "2679"]
[TimeControl "180+2"]
[EndTime "15:07:26 PDT"]
[Termination "Shtembuliak won on time"]

1. c4 {[%clk 0:03:01.9]} 1... e5 {[%clk 0:03:00.5]} 2. g3 {[%clk 0:03:01]} 2...
c6 {[%clk 0:03:01]} 3. Nf3 {[%clk 0:02:56]} 3... e4 {[%clk 0:03:00.6]} 4. Nd4
{[%clk 0:02:56.7]} 4... d5 {[%clk 0:03:01.2]} 5. cxd5 {[%clk 0:02:53.8]} 5...
Nf6 {[%clk 0:03:00.8]} 6. Bg2 {[%clk 0:02:51.6]} 6... Qxd5 {[%clk 0:02:59.8]} 7.
Nc2 {[%clk 0:02:52.1]} 7... Qh5 {[%clk 0:02:51.9]} 8. h3 {[%clk 0:02:50]} 8...
Bd6 {[%clk 0:02:47.3]} 9. Nc3 {[%clk 0:02:48.7]} 9... Qg6 {[%clk 0:02:42.2]} 10.
Ne3 {[%clk 0:02:43]} 10... O-O {[%clk 0:02:38.3]} 11. Qc2 {[%clk 0:02:42.8]}
11... Re8 {[%clk 0:02:38.4]} 12. b3 {[%clk 0:02:41.7]} 12... Na6 {[%clk
0:02:38.4]} 13. a3 {[%clk 0:02:40.5]} 13... Nc5 {[%clk 0:01:43.2]} 14. Bb2
{[%clk 0:02:36.5]} 14... Be6 {[%clk 0:01:42.7]} 15. b4 {[%clk 0:02:36.7]} 15...
Nb3 {[%clk 0:01:43.6]} 16. Rd1 {[%clk 0:02:23.1]} 16... Nd4 {[%clk 0:01:39.9]}
17. Qb1 {[%clk 0:02:18.2]} 17... Bb3 {[%clk 0:01:38.1]} 18. Rc1 {[%clk
0:02:17.2]} 18... Bxg3 {[%clk 0:01:26.1]} 19. fxg3 {[%clk 0:02:16.9]} 19...
Qxg3+ {[%clk 0:01:26.3]} 20. Kf1 {[%clk 0:02:16.4]} 20... Nf3 {[%clk 0:00:54.3]}
21. Bxf3 {[%clk 0:01:10.4]} 21... exf3 {[%clk 0:00:54.9]} 22. Rg1 {[%clk
0:01:03.6]} 22... Qxh3+ {[%clk 0:00:36.9]} 23. Kf2 {[%clk 0:01:03.1]} 23... Rxe3
{[%clk 0:00:07.1]} 24. dxe3 {[%clk 0:00:51.7]} 24... Qh2+ {[%clk 0:00:03.5]} 25.
Kxf3 {[%clk 0:00:50.4]} 25... Qh5+ {[%clk 0:00:03.7]} 26. Kf2 {[%clk 0:00:50]}
26... Qh4+ {[%clk 0:00:04.8]} 27. Kf1 {[%clk 0:00:46.1]} 27... Qh3+ {[%clk
0:00:04.9]} 28. Kf2 {[%clk 0:00:27]} 28... Qh4+ {[%clk 0:00:05.9]} 29. Rg3
{[%clk 0:00:27.8]} 29... Nh5 {[%clk 0:00:03.1]} 30. Rg1 {[%clk 0:00:27.4]} 30...
Nxg3 {[%clk 0:00:02.8]} 31. Rxg3 {[%clk 0:00:28.3]} 31... Qh2+ {[%clk 0:00:03]}
32. Rg2 {[%clk 0:00:28.3]} 32... Qh4+ {[%clk 0:00:04]} 33. Kg1 {[%clk
0:00:29.5]} 33... Re8 {[%clk 0:00:04.9]} 34. e4 {[%clk 0:00:20]} 34... Re6
{[%clk 0:00:03.4]} 35. Qf1 {[%clk 0:00:13.2]} 35... Rh6 {[%clk 0:00:03.8]} 36.
Nb1 {[%clk 0:00:07.3]} 36... Qh1+ {[%clk 0:00:04.1]} 37. Kf2 {[%clk 0:00:08.3]}
37... Qh4+ {[%clk 0:00:04.4]} 38. Kg1 {[%clk 0:00:08.9]} 38... Qh1+ {[%clk
0:00:05.3]} 39. Kf2 {[%clk 0:00:10.3]} 39... Qh4+ {[%clk 0:00:05.3]} 40. Ke3
{[%clk 0:00:10.1]} 40... Qh3+ {[%clk 0:00:03.7]} 41. Qf3 {[%clk 0:00:10.1]} 1-0

[Event "*** Biggest EVER Titled Tuesday"]
[Site "Chess.com"]
[Date "2018.04.17"]
[Round "9"]
[White "SilverCat1992"]
[Black "Kislov_Oleg"]
[Result "0-1"]
[WhiteElo "2069"]
[BlackElo "2258"]
[TimeControl "180+2"]
[EndTime "15:07:35 PDT"]
[Termination "Kislov_Oleg won by checkmate"]

1. e4 {[%clk 0:03:01.9]} 1... e6 {[%clk 0:03:00.9]} 2. d4 {[%clk 0:03:00.9]}
2... d5 {[%clk 0:03:02.4]} 3. Nc3 {[%clk 0:03:02.1]} 3... Nf6 {[%clk 0:03:03.5]}
4. Bg5 {[%clk 0:03:01.4]} 4... dxe4 {[%clk 0:03:03.6]} 5. Nxe4 {[%clk
0:02:58.1]} 5... Be7 {[%clk 0:03:05.2]} 6. Bxf6 {[%clk 0:02:26.7]} 6... gxf6
{[%clk 0:03:05.7]} 7. Bd3 {[%clk 0:02:24.2]} 7... b6 {[%clk 0:03:05.2]} 8. c3
{[%clk 0:02:17.8]} 8... Bb7 {[%clk 0:03:05.7]} 9. Nf3 {[%clk 0:02:16]} 9... c6
{[%clk 0:03:04.7]} 10. Qe2 {[%clk 0:02:12.7]} 10... Qc7 {[%clk 0:03:05.5]} 11.
a4 {[%clk 0:02:02.1]} 11... Nd7 {[%clk 0:03:02.8]} 12. a5 {[%clk 0:02:01.8]}
12... Rg8 {[%clk 0:02:37]} 13. a6 {[%clk 0:01:59.2]} 13... Bc8 {[%clk 0:02:36]}
14. Ng3 {[%clk 0:01:48]} 14... Nf8 {[%clk 0:02:34]} 15. O-O {[%clk 0:01:47.7]}
15... Bd7 {[%clk 0:02:25.9]} 16. Rfe1 {[%clk 0:01:46.9]} 16... O-O-O {[%clk
0:02:25]} 17. Nf5 {[%clk 0:01:34.4]} 17... Bd6 {[%clk 0:02:23.8]} 18. Nxd6+
{[%clk 0:01:35]} 18... Qxd6 {[%clk 0:02:23.4]} 19. c4 {[%clk 0:01:32.4]} 19...
Ng6 {[%clk 0:02:23.5]} 20. c5 {[%clk 0:01:12.2]} 20... bxc5 {[%clk 0:02:14.4]}
21. dxc5 {[%clk 0:01:14.1]} 21... Qc7 {[%clk 0:02:15.4]} 22. Qc2 {[%clk
0:00:59.5]} 22... Nf4 {[%clk 0:02:07.9]} 23. Bf1 {[%clk 0:01:00.9]} 23... e5
{[%clk 0:01:56.3]} 24. Rec1 {[%clk 0:00:26.8]} 24... Rg7 {[%clk 0:01:44.1]} 25.
b4 {[%clk 0:00:26.9]} 25... Nxg2 {[%clk 0:01:40.1]} 26. Bxg2 {[%clk 0:00:25.5]}
26... Bh3 {[%clk 0:01:39.9]} 27. Ne1 {[%clk 0:00:26.4]} 27... Rdg8 {[%clk
0:01:40.1]} 28. f3 {[%clk 0:00:26.8]} 28... Bxg2 {[%clk 0:01:40.8]} 29. Nxg2
{[%clk 0:00:27.5]} 29... Qd7 {[%clk 0:01:29.8]} 30. Kh1 {[%clk 0:00:19.3]} 30...
Rxg2 {[%clk 0:01:27.6]} 31. Qxg2 {[%clk 0:00:21.2]} 31... Rxg2 {[%clk
0:01:28.1]} 32. Kxg2 {[%clk 0:00:23.1]} 32... Qd2+ {[%clk 0:01:28.8]} 33. Kg3
{[%clk 0:00:23.1]} 33... Qxb4 {[%clk 0:01:27.3]} 34. Rg1 {[%clk 0:00:20.8]}
34... Qxc5 {[%clk 0:01:24]} 35. Kh3 {[%clk 0:00:20.7]} 35... Qd5 {[%clk
0:01:14.7]} 36. Rg8+ {[%clk 0:00:14.7]} 36... Kd7 {[%clk 0:01:12.9]} 37. Rg3
{[%clk 0:00:16.2]} 37... Ke6 {[%clk 0:01:09.5]} 38. Rb1 {[%clk 0:00:16.9]} 38...
Qd3 {[%clk 0:01:07.8]} 39. Ra1 {[%clk 0:00:11.2]} 39... f5 {[%clk 0:01:03.8]}
40. f4 {[%clk 0:00:10.9]} 40... Qd4 {[%clk 0:01:02]} 41. Rb1 {[%clk 0:00:05.2]}
41... exf4 {[%clk 0:00:58.6]} 42. Rf3 {[%clk 0:00:05.6]} 42... Qe4 {[%clk
0:00:57]} 43. Rbf1 {[%clk 0:00:06.1]} 43... Ke5 {[%clk 0:00:58]} 44. Kh4 {[%clk
0:00:06.4]} 44... c5 {[%clk 0:00:53.7]} 45. Kg5 {[%clk 0:00:06.9]} 45... c4
{[%clk 0:00:51]} 46. Kh6 {[%clk 0:00:05.7]} 46... Qd4 {[%clk 0:00:48.9]} 47. h4
{[%clk 0:00:04.9]} 47... c3 {[%clk 0:00:48.4]} 48. R3f2 {[%clk 0:00:04.4]} 48...
Qd6+ {[%clk 0:00:43.7]} 49. Kxh7 {[%clk 0:00:04.3]} 49... Qg6+ {[%clk
0:00:44.7]} 50. Kh8 {[%clk 0:00:05.9]} 50... Kf6 {[%clk 0:00:45.7]} 51. Rxf4
{[%clk 0:00:03.5]} 51... Qg7# {[%clk 0:00:46.3]} 0-1

[Event "*** Biggest EVER Titled Tuesday"]
[Site "Chess.com"]
[Date "2018.04.17"]
[Round "9"]
[White "lupta_robin"]
[Black "TST2014"]
[Result "1-0"]
[WhiteElo "2434"]
[BlackElo "2339"]
[TimeControl "180+2"]
[EndTime "15:07:47 PDT"]
[Termination "lupta_robin won on time"]

1. e4 {[%clk 0:03:01.9]} 1... c5 {[%clk 0:02:59.5]} 2. Nf3 {[%clk 0:03:02.8]}
2... Nc6 {[%clk 0:03:00.4]} 3. d4 {[%clk 0:03:04.2]} 3... cxd4 {[%clk
0:03:01.3]} 4. Nxd4 {[%clk 0:03:06.1]} 4... Nf6 {[%clk 0:03:02.3]} 5. Nc3 {[%clk
0:03:05.9]} 5... d6 {[%clk 0:03:03.4]} 6. Bg5 {[%clk 0:03:06.1]} 6... e6 {[%clk
0:03:04.5]} 7. Qd2 {[%clk 0:03:06.4]} 7... a6 {[%clk 0:03:05.6]} 8. O-O-O {[%clk
0:03:06.1]} 8... Bd7 {[%clk 0:03:06.9]} 9. f4 {[%clk 0:03:06.7]} 9... h6 {[%clk
0:03:07.9]} 10. Bh4 {[%clk 0:03:04]} 10... g5 {[%clk 0:03:09]} 11. fxg5 {[%clk
0:03:02.6]} 11... Ng4 {[%clk 0:03:10.1]} 12. h3 {[%clk 0:02:57]} 12... Nge5
{[%clk 0:02:42.1]} 13. Be2 {[%clk 0:02:57]} 13... Be7 {[%clk 0:02:42.1]} 14.
Rhf1 {[%clk 0:02:54.1]} 14... hxg5 {[%clk 0:02:38.8]} 15. Bg3 {[%clk 0:02:53.4]}
15... Qb6 {[%clk 0:02:30.5]} 16. Nxc6 {[%clk 0:02:44.3]} 16... Bxc6 {[%clk
0:02:27.8]} 17. Kb1 {[%clk 0:02:39.3]} 17... O-O-O {[%clk 0:02:28]} 18. Bf2
{[%clk 0:02:29.7]} 18... Qc7 {[%clk 0:02:25.3]} 19. Bd4 {[%clk 0:02:27.4]} 19...
f6 {[%clk 0:02:24.5]} 20. Qe3 {[%clk 0:02:27.5]} 20... Nd7 {[%clk 0:02:20.8]}
21. Qg1 {[%clk 0:02:12.4]} 21... b5 {[%clk 0:02:05.6]} 22. a3 {[%clk 0:02:04.7]}
22... Nc5 {[%clk 0:01:59.1]} 23. Bg4 {[%clk 0:02:01.8]} 23... Bd7 {[%clk
0:01:53.7]} 24. Qe3 {[%clk 0:01:52.1]} 24... Kb8 {[%clk 0:01:50.3]} 25. b4
{[%clk 0:01:40.5]} 25... Rdf8 {[%clk 0:01:30.4]} 26. Qd2 {[%clk 0:01:17.4]}
26... Nb7 {[%clk 0:01:28.6]} 27. Kb2 {[%clk 0:01:09.5]} 27... Rh4 {[%clk
0:01:19.4]} 28. Rf3 {[%clk 0:01:08.9]} 28... Nd8 {[%clk 0:01:04.5]} 29. Rdf1
{[%clk 0:01:00.3]} 29... Rh6 {[%clk 0:01:04.8]} 30. Ne2 {[%clk 0:00:59]} 30...
Nc6 {[%clk 0:00:57.8]} 31. Rc3 {[%clk 0:00:57]} 31... Qb7 {[%clk 0:00:54.7]} 32.
Rf2 {[%clk 0:00:50.9]} 32... f5 {[%clk 0:00:50.7]} 33. exf5 {[%clk 0:00:49.7]}
33... exf5 {[%clk 0:00:51.2]} 34. Bf3 {[%clk 0:00:50.8]} 34... g4 {[%clk
0:00:49.7]} 35. Bd5 {[%clk 0:00:36.9]} 35... Rg6 {[%clk 0:00:41.2]} 36. Qe3
{[%clk 0:00:29.7]} 36... Bg5 {[%clk 0:00:39.1]} 37. Qd3 {[%clk 0:00:28.6]} 37...
gxh3 {[%clk 0:00:11.5]} 38. gxh3 {[%clk 0:00:28.9]} 38... Bf6 {[%clk 0:00:12.8]}
39. Bxf6 {[%clk 0:00:27.5]} 39... Rfxf6 {[%clk 0:00:13.7]} 40. Nf4 {[%clk
0:00:27.5]} 40... Rg5 {[%clk 0:00:11.6]} 41. Re2 {[%clk 0:00:26.2]} 41... Ne5
{[%clk 0:00:12.6]} 42. Rxe5 {[%clk 0:00:26.4]} 42... dxe5 {[%clk 0:00:13.6]} 43.
Bxb7 {[%clk 0:00:27.4]} 43... exf4 {[%clk 0:00:12]} 44. Qxd7 {[%clk 0:00:27.9]}
44... f3 {[%clk 0:00:12]} 45. Rc8+ {[%clk 0:00:24.5]} 45... Ka7 {[%clk 0:00:12]}
46. Ba8+ {[%clk 0:00:25.1]} 1-0

[Event "*** Biggest EVER Titled Tuesday"]
[Site "Chess.com"]
[Date "2018.04.17"]
[Round "9"]
[White "Konavets"]
[Black "Margency"]
[Result "0-1"]
[WhiteElo "2762"]
[BlackElo "2585"]
[TimeControl "180+2"]
[EndTime "15:07:50 PDT"]
[Termination "Margency won by resignation"]

1. d4 {[%clk 0:03:01.9]} 1... d5 {[%clk 0:02:43.1]} 2. Nf3 {[%clk 0:03:03.8]}
2... Nf6 {[%clk 0:02:42.1]} 3. Bf4 {[%clk 0:03:05.7]} 3... c5 {[%clk 0:02:41.8]}
4. e3 {[%clk 0:03:06.4]} 4... Nc6 {[%clk 0:02:42.6]} 5. Nbd2 {[%clk 0:03:07]}
5... Bf5 {[%clk 0:02:34.3]} 6. c3 {[%clk 0:03:02.3]} 6... e6 {[%clk 0:02:34.3]}
7. Qb3 {[%clk 0:03:03.4]} 7... Qb6 {[%clk 0:02:34.5]} 8. Qxb6 {[%clk 0:03:01.1]}
8... axb6 {[%clk 0:02:35.2]} 9. Be2 {[%clk 0:03:00.7]} 9... Be7 {[%clk
0:02:34.2]} 10. O-O {[%clk 0:02:59.3]} 10... h6 {[%clk 0:02:28.2]} 11. a3 {[%clk
0:02:59]} 11... c4 {[%clk 0:02:24.7]} 12. h3 {[%clk 0:02:58]} 12... b5 {[%clk
0:02:24.5]} 13. Ne5 {[%clk 0:02:56.1]} 13... Nd7 {[%clk 0:02:22.2]} 14. Nxd7
{[%clk 0:02:57]} 14... Kxd7 {[%clk 0:02:23.1]} 15. f3 {[%clk 0:02:57.4]} 15...
Na7 {[%clk 0:02:06.2]} 16. e4 {[%clk 0:02:56.5]} 16... Bg6 {[%clk 0:02:06.9]}
17. g3 {[%clk 0:02:55.3]} 17... Nc8 {[%clk 0:02:06.4]} 18. Rfe1 {[%clk
0:02:55.9]} 18... Nb6 {[%clk 0:02:06.9]} 19. Bd1 {[%clk 0:02:57.2]} 19... Na4
{[%clk 0:02:05.5]} 20. Bxa4 {[%clk 0:02:57.9]} 20... bxa4 {[%clk 0:02:05.5]} 21.
Re2 {[%clk 0:02:53.1]} 21... Rhc8 {[%clk 0:02:01.3]} 22. Rae1 {[%clk 0:02:53.4]}
22... Bf8 {[%clk 0:02:01.9]} 23. g4 {[%clk 0:02:51.5]} 23... Ra5 {[%clk
0:01:58.1]} 24. Nf1 {[%clk 0:02:52.8]} 24... Rb5 {[%clk 0:01:57.1]} 25. h4
{[%clk 0:02:54.2]} 25... h5 {[%clk 0:01:55.4]} 26. g5 {[%clk 0:02:52.2]} 26...
Rc6 {[%clk 0:01:48.7]} 27. Kg2 {[%clk 0:02:53.1]} 27... Rcb6 {[%clk 0:01:49.7]}
28. Bc1 {[%clk 0:02:54.7]} 28... Bd6 {[%clk 0:01:48.9]} 29. Ng3 {[%clk
0:02:53.9]} 29... Rb3 {[%clk 0:01:39.9]} 30. Nh1 {[%clk 0:02:33.5]} 30... R3b5
{[%clk 0:01:19]} 31. Nf2 {[%clk 0:02:33.7]} 31... Ra5 {[%clk 0:01:16.6]} 32. Nh3
{[%clk 0:02:32.6]} 32... Rab5 {[%clk 0:01:16.6]} 33. Ng1 {[%clk 0:02:33.2]}
33... Rb3 {[%clk 0:01:14.8]} 34. Nh3 {[%clk 0:02:34.1]} 34... R3b5 {[%clk
0:01:15.3]} 35. Nf2 {[%clk 0:02:35.2]} 35... Rb3 {[%clk 0:01:15.9]} 36. Nd1
{[%clk 0:02:36.5]} 36... R3b5 {[%clk 0:01:15.2]} 37. Kh3 {[%clk 0:02:37.9]}
37... Rb3 {[%clk 0:01:14.8]} 38. Kg2 {[%clk 0:02:32.8]} 38... R3b5 {[%clk
0:01:15.4]} 39. Rg1 {[%clk 0:02:34.2]} 39... Rb3 {[%clk 0:01:16.3]} 40. Kf2
{[%clk 0:02:34.5]} 40... R3b5 {[%clk 0:01:17.2]} 41. Ke1 {[%clk 0:02:35.9]}
41... Rb3 {[%clk 0:01:17.6]} 42. Kd2 {[%clk 0:02:37.1]} 42... R3b5 {[%clk
0:01:13.6]} 43. Kc2 {[%clk 0:02:37.8]} 43... e5 {[%clk 0:01:11.6]} 44. dxe5
{[%clk 0:02:36.4]} 44... dxe4 {[%clk 0:01:10.2]} 45. fxe4 {[%clk 0:02:26.6]}
45... Rxe5 {[%clk 0:01:10.9]} 46. Nf2 {[%clk 0:02:27.9]} 46... Bc5 {[%clk
0:01:10.4]} 47. Bf4 {[%clk 0:02:11.6]} 47... Rxe4 {[%clk 0:00:59.6]} 48. Nxe4
{[%clk 0:01:35.8]} 48... Bxg1 {[%clk 0:01:00]} 49. Kc1 {[%clk 0:01:36.9]} 49...
Re6 {[%clk 0:00:56.1]} 50. Ng3 {[%clk 0:01:36.1]} 50... Rxe2 {[%clk 0:00:56]}
51. Nxe2 {[%clk 0:01:38]} 51... Bf2 {[%clk 0:00:57.3]} 52. Bg3 {[%clk
0:01:37.8]} 52... Be3+ {[%clk 0:00:54]} 53. Kd1 {[%clk 0:01:38.8]} 53... Bd3
{[%clk 0:00:54.2]} 54. Nd4 {[%clk 0:01:38.6]} 54... f6 {[%clk 0:00:50.8]} 55.
gxf6 {[%clk 0:01:39.3]} 55... gxf6 {[%clk 0:00:52]} 56. Be1 {[%clk 0:01:38]}
56... f5 {[%clk 0:00:51.4]} 57. Bd2 {[%clk 0:01:37.8]} 57... f4 {[%clk
0:00:46.6]} 58. Nf3 {[%clk 0:01:35.4]} 58... Ke6 {[%clk 0:00:45.2]} 59. Nd4+
{[%clk 0:01:35.8]} 59... Ke5 {[%clk 0:00:45.4]} 60. Ke1 {[%clk 0:01:34]} 60...
Ke4 {[%clk 0:00:44.9]} 61. Ne6 {[%clk 0:01:34.7]} 61... Kf5 {[%clk 0:00:42.5]}
62. Nc7 {[%clk 0:01:20.1]} 62... Kg4 {[%clk 0:00:40.2]} 63. Nd5 {[%clk
0:01:21.4]} 63... Bxd2+ {[%clk 0:00:39.9]} 64. Kxd2 {[%clk 0:01:23.3]} 64... Kg3
{[%clk 0:00:38.8]} 65. Nf6 {[%clk 0:01:23]} 65... Bg6 {[%clk 0:00:29.4]} 0-1

[Event "*** Biggest EVER Titled Tuesday"]
[Site "Chess.com"]
[Date "2018.04.17"]
[Round "9"]
[White "Bryakin_Mikhail"]
[Black "Sam_ChessMood"]
[Result "1/2-1/2"]
[WhiteElo "2615"]
[BlackElo "2643"]
[TimeControl "180+2"]
[EndTime "15:07:50 PDT"]
[Termination "Game drawn by repetition"]

1. d4 {[%clk 0:03:00.4]} 1... Nf6 {[%clk 0:03:00.5]} 2. c4 {[%clk 0:03:01.8]}
2... e6 {[%clk 0:03:01.2]} 3. g3 {[%clk 0:03:01.9]} 3... Bb4+ {[%clk 0:03:01.3]}
4. Bd2 {[%clk 0:03:02.4]} 4... Be7 {[%clk 0:03:02.3]} 5. Bg2 {[%clk 0:03:03.7]}
5... O-O {[%clk 0:03:01.3]} 6. Nf3 {[%clk 0:03:03.8]} 6... d5 {[%clk 0:03:01.9]}
7. Qc2 {[%clk 0:03:04.7]} 7... Nbd7 {[%clk 0:02:59.7]} 8. O-O {[%clk 0:03:05.9]}
8... Ne4 {[%clk 0:02:58.6]} 9. Rd1 {[%clk 0:03:04.8]} 9... c6 {[%clk 0:02:57.8]}
10. Nc3 {[%clk 0:03:06.1]} 10... f5 {[%clk 0:02:55.5]} 11. Rac1 {[%clk
0:03:07.2]} 11... Bd6 {[%clk 0:02:51.5]} 12. Bf4 {[%clk 0:02:44.2]} 12... Bxf4
{[%clk 0:02:50.6]} 13. gxf4 {[%clk 0:02:46.1]} 13... Qe7 {[%clk 0:02:40]} 14. e3
{[%clk 0:02:46.1]} 14... a5 {[%clk 0:02:40.3]} 15. c5 {[%clk 0:02:43.1]} 15...
Rf6 {[%clk 0:02:32.1]} 16. Kh1 {[%clk 0:02:37.9]} 16... Rh6 {[%clk 0:02:32.7]}
17. Rg1 {[%clk 0:02:25.9]} 17... Kh8 {[%clk 0:02:33]} 18. Nxe4 {[%clk
0:02:18.7]} 18... fxe4 {[%clk 0:02:22.1]} 19. Ng5 {[%clk 0:02:20.1]} 19... e5
{[%clk 0:02:05.9]} 20. Bxe4 {[%clk 0:01:28.5]} 20... dxe4 {[%clk 0:01:44.1]} 21.
Qc4 {[%clk 0:01:28.3]} 21... Rf6 {[%clk 0:01:03.2]} 22. dxe5 {[%clk 0:01:27.6]}
22... Rf5 {[%clk 0:00:33.8]} 23. Qxe4 {[%clk 0:01:07.7]} 23... Nxc5 {[%clk
0:00:34.7]} 24. Qc2 {[%clk 0:01:08.4]} 24... b6 {[%clk 0:00:25.5]} 25. Nf3
{[%clk 0:01:08.2]} 25... Be6 {[%clk 0:00:22.6]} 26. Nd4 {[%clk 0:01:08.7]} 26...
Bd5+ {[%clk 0:00:23.4]} 27. f3 {[%clk 0:01:10.2]} 27... Rh5 {[%clk 0:00:23.5]}
28. e4 {[%clk 0:01:04.5]} 28... Be6 {[%clk 0:00:19.9]} 29. Qg2 {[%clk
0:00:57.2]} 29... Rg8 {[%clk 0:00:18.5]} 30. f5 {[%clk 0:00:53.9]} 30... Bf7
{[%clk 0:00:16.4]} 31. Nxc6 {[%clk 0:00:39.2]} 31... Qh4 {[%clk 0:00:17.3]} 32.
Rcd1 {[%clk 0:00:24.6]} 32... Be8 {[%clk 0:00:15.1]} 33. Rd8 {[%clk 0:00:18]}
33... g6 {[%clk 0:00:02.9]} 34. Rd6 {[%clk 0:00:06.8]} 34... Qf4 {[%clk
0:00:03.9]} 35. fxg6 {[%clk 0:00:06.2]} 35... Rxg6 {[%clk 0:00:04.6]} 36. Rxg6
{[%clk 0:00:06.1]} 36... Bxg6 {[%clk 0:00:06.5]} 37. e6 {[%clk 0:00:05]} 37...
Nd3 {[%clk 0:00:07.7]} 38. Ne7 {[%clk 0:00:05.1]} 38... Rxh2+ {[%clk 0:00:08.3]}
39. Qxh2 {[%clk 0:00:05.9]} 39... Qxf3+ {[%clk 0:00:09.7]} 40. Rg2 {[%clk
0:00:04.9]} 40... Qd1+ {[%clk 0:00:08.3]} 41. Qg1 {[%clk 0:00:04.6]} 41... Qh5+
{[%clk 0:00:09]} 42. Qh2 {[%clk 0:00:06]} 42... Qd1+ {[%clk 0:00:09.9]} 43. Qg1
{[%clk 0:00:07.4]} 43... Qh5+ {[%clk 0:00:10.5]} 44. Qh2 {[%clk 0:00:08.8]}
44... Qd1+ {[%clk 0:00:10.7]} 45. Qg1 {[%clk 0:00:10.2]} 45... Qh5+ {[%clk
0:00:11]} 46. Qh2 {[%clk 0:00:11.7]} 46... Qd1+ {[%clk 0:00:12]} 47. Qg1 {[%clk
0:00:13.1]} 47... Qh5+ {[%clk 0:00:11.9]} 48. Qh2 {[%clk 0:00:14.2]} 48... Qd1+
{[%clk 0:00:09.8]} 1/2-1/2

[Event "*** Biggest EVER Titled Tuesday"]
[Site "Chess.com"]
[Date "2018.04.17"]
[Round "9"]
[White "bugsbunny444"]
[Black "nubair1198"]
[Result "1/2-1/2"]
[WhiteElo "2416"]
[BlackElo "2520"]
[TimeControl "180+2"]
[EndTime "15:07:53 PDT"]
[Termination "Game drawn by repetition"]

1. Nf3 {[%clk 0:03:01.9]} 1... d5 {[%clk 0:03:00.4]} 2. c4 {[%clk 0:03:03.4]}
2... d4 {[%clk 0:03:01.8]} 3. b4 {[%clk 0:03:04]} 3... c5 {[%clk 0:03:03.3]} 4.
g3 {[%clk 0:03:04.4]} 4... f6 {[%clk 0:03:03.5]} 5. Bg2 {[%clk 0:03:05.2]} 5...
e5 {[%clk 0:03:04.6]} 6. O-O {[%clk 0:03:03.7]} 6... Nc6 {[%clk 0:03:02.1]} 7.
b5 {[%clk 0:03:01.7]} 7... Na5 {[%clk 0:03:01.7]} 8. d3 {[%clk 0:03:01.9]} 8...
Bd6 {[%clk 0:03:01.3]} 9. Nbd2 {[%clk 0:02:56.4]} 9... a6 {[%clk 0:02:54.8]} 10.
a4 {[%clk 0:02:55.4]} 10... Ne7 {[%clk 0:02:45.3]} 11. Ne4 {[%clk 0:02:55.5]}
11... Bf5 {[%clk 0:02:41.5]} 12. Nxd6+ {[%clk 0:02:39.4]} 12... Qxd6 {[%clk
0:02:43.4]} 13. Bd2 {[%clk 0:02:25]} 13... Qd8 {[%clk 0:02:27.8]} 14. Ra3 {[%clk
0:02:06.6]} 14... O-O {[%clk 0:02:24.4]} 15. Qe1 {[%clk 0:02:07.8]} 15... b6
{[%clk 0:01:33.2]} 16. Bxa5 {[%clk 0:02:07.6]} 16... bxa5 {[%clk 0:01:35.1]} 17.
Nh4 {[%clk 0:02:08.4]} 17... Rb8 {[%clk 0:01:29]} 18. Nxf5 {[%clk 0:02:01.9]}
18... Nxf5 {[%clk 0:01:30.9]} 19. Qd2 {[%clk 0:01:33.1]} 19... Nd6 {[%clk
0:01:30.9]} 20. Bd5+ {[%clk 0:01:30.6]} 20... Kh8 {[%clk 0:01:31.2]} 21. Rb1
{[%clk 0:01:29.4]} 21... f5 {[%clk 0:01:28.3]} 22. Rab3 {[%clk 0:01:15.2]} 22...
axb5 {[%clk 0:01:29.3]} 23. axb5 {[%clk 0:01:14]} 23... e4 {[%clk 0:01:30.7]}
24. Ra3 {[%clk 0:01:00.8]} 24... a4 {[%clk 0:00:48.7]} 25. Rxa4 {[%clk
0:00:28.7]} 25... Nxb5 {[%clk 0:00:49.8]} 26. cxb5 {[%clk 0:00:29.1]} 26... Qxd5
{[%clk 0:00:50.1]} 27. Rc4 {[%clk 0:00:27.2]} 27... f4 {[%clk 0:00:50.7]} 28.
Qc2 {[%clk 0:00:22.1]} 28... e3 {[%clk 0:00:51.7]} 29. f3 {[%clk 0:00:18.8]}
29... Rf5 {[%clk 0:00:38.8]} 30. gxf4 {[%clk 0:00:12.7]} 30... Rb6 {[%clk
0:00:26.2]} 31. Kh1 {[%clk 0:00:10.4]} 31... Rh6 {[%clk 0:00:24.5]} 32. b6
{[%clk 0:00:11.1]} 32... Rfh5 {[%clk 0:00:25.9]} 33. Rxc5 {[%clk 0:00:05.1]}
33... Rxh2+ {[%clk 0:00:24.6]} 34. Kg1 {[%clk 0:00:06.6]} 34... Rh1+ {[%clk
0:00:23.8]} 35. Kg2 {[%clk 0:00:08]} 35... R1h2+ {[%clk 0:00:22.7]} 36. Kg1
{[%clk 0:00:07.9]} 36... Rh1+ {[%clk 0:00:17.6]} 37. Kg2 {[%clk 0:00:09.3]}
37... R6h2+ {[%clk 0:00:19.2]} 38. Kg3 {[%clk 0:00:10.2]} 38... Rh3+ {[%clk
0:00:18.4]} 39. Kg2 {[%clk 0:00:11.4]} 39... R1h2+ {[%clk 0:00:19.3]} 40. Kg1
{[%clk 0:00:12.7]} 40... Qd8 {[%clk 0:00:11.5]} 41. Rc8 {[%clk 0:00:08.9]} 41...
Rh1+ {[%clk 0:00:11.8]} 42. Kg2 {[%clk 0:00:10.2]} 42... R1h2+ {[%clk
0:00:13.4]} 43. Kg1 {[%clk 0:00:11.4]} 43... Rh1+ {[%clk 0:00:14.6]} 44. Kg2
{[%clk 0:00:12.9]} 44... R1h2+ {[%clk 0:00:12.5]} 45. Kg1 {[%clk 0:00:14.1]}
45... Rh1+ {[%clk 0:00:12.3]} 46. Kg2 {[%clk 0:00:15.4]} 46... R1h2+ {[%clk
0:00:10.6]} 47. Kg1 {[%clk 0:00:16.6]} 47... Rh1+ {[%clk 0:00:06.6]} 48. Kg2
{[%clk 0:00:17.9]} 48... R1h2+ {[%clk 0:00:08.2]} 49. Kg1 {[%clk 0:00:19.2]}
1/2-1/2